fUSD/lending_fUSD_20251213
["ID","MTS","AMOUNT","RATE_DAILY","PERIOD"]
[398397497,1765601440119,-500.0,0.00016973,2]
[398397498,1765601440128,-500.0,0.00016973,2]
[398397499,1765601440137,-500.0,0.00016973,2]
[398397500,1765601440148,-501.17585924,0.00016973,2]
[398397501,1765601440156,-500.0,0.00016973,2]
[398397503,1765601440166,-500.0,0.00016973,2]
[398397505,1765601440176,-500.0,0.00016973,2]
[398397507,1765601440184,-500.0,0.00016973,2]
[398397509,1765601440193,-500.0,0.00016973,2]
[398397510,1765601440203,-500.35142295,0.00016973,2]
[398397512,1765601440212,-500.0,0.00016973,2]
[398397515,1765601440221,-500.0,0.00016973,2]
[398397517,1765601440230,-500.0,0.00016973,2]
[398397519,1765601440239,-500.0,0.00016973,2]
[398397520,1765601440249,-500.0,0.00016973,2]
[398397522,1765601440262,-500.0,0.00016973,2]
[398397524,1765601440271,-500.0,0.00016973,2]
[398397545,1765601440580,-150.0,0.00016986,2]
[398397546,1765601440591,-500.0,0.0001699,2]
[398397547,1765601440600,-500.0,0.0001699,2]
[398397548,1765601440610,-2191.0,0.0001699,2]
[398397549,1765601440619,-500.0,0.0001699,2]
[398397550,1765601440630,-150.0,0.0001699,2]
[398397551,1765601440639,-213.15981732,0.0001699,2]
[398397552,1765601440648,-150.0,0.0001699,2]
[398397553,1765601440658,-150.0,0.0001699,2]
[398397554,1765601440667,-500.0,0.0001699,2]
[398397555,1765601440676,-500.0,0.0001699,2]
[398397556,1765601440685,-256.84023442,0.0001699,2]
[398397557,1765601440695,-5098.01,0.0001699,2]
[398397558,1765601440704,-5098.01,0.0001699,2]
[398397559,1765601440713,-151.0,0.00016997,2]
[398397560,1765601440723,-1000.0,0.00016999,2]
[398397561,1765601440732,-18442.40485215,0.00017,2]
[398397562,1765601440741,-569.70555254,0.00017,2]
[398397563,1765601440750,-298087.14055926,0.00017,2]
[398397564,1765601440770,-141915.94039897,0.00017,2]
[398397576,1765601445735,-255.79226325,0.00017,2]
[398397579,1765601446650,-370.1401105,0.00017,2]
[398397580,1765601446681,-629.8598895,0.00017,2]
[398397581,1765601446692,-899.89,0.00017,2]
[398397582,1765601446703,-1281.89246576,0.00017,2]
[398397583,1765601446713,-3191.69079946,0.00017,2]
[398397740,1765602313743,150.0,0.00015288,2]
[398397741,1765602313900,150.0,0.00015288,2]
[398397742,1765602319343,150.0,0.00015288,2]
[398397743,1765602320763,150.0,0.00015288,2]
[398397756,1765602424720,-250.0,0.00015948,2]
[398397757,1765602424745,-37.66325273,0.0001606,2]
[398397758,1765602426600,-175.09189189,0.0001606,2]
[398397759,1765602429956,-182.53875353,0.0001606,2]
[398397760,1765602431636,-287.82395899,0.0001606,2]
[398397778,1765602491680,164.35,7.901e-05,2]
[398397779,1765602492676,164.35,9.481e-05,2]
[398397780,1765602492717,164.35,0.00011062,2]
[398397781,1765602492755,164.35,0.00012642,2]
[398397782,1765602492806,164.35,0.00014222,2]
[398397808,1765602631841,-164.35,0.00015802,2]
[398397809,1765602631851,-558.72387013,0.0001606,2]
[398397810,1765602631897,-358.15827273,0.0001606,2]
[398397811,1765602631907,-1000.0,0.00016098,3]
[398397812,1765602631916,-214.53894576,0.00016237,2]
[398397813,1765602631925,-164.53,0.00016276,2]
[398397814,1765602631935,-32.43039104,0.00016301,3]
[398397815,1765602631953,-241.42960896,0.00016301,3]
[398397816,1765602631962,-300.0,0.00016437,2]
[398397817,1765602631972,-1200.0,0.00016437,2]
[398397818,1765602631982,-8116.23,0.00016438,2]
[398397819,1765602631991,-677.0,0.00016564,2]
[398397820,1765602632001,-150.0,0.00016579,2]
[398397821,1765602632010,-150.0,0.00016579,2]
[398397822,1765602632019,-500.0,0.00016579,2]
[398397823,1765602632029,-150.0,0.00016579,2]
[398397824,1765602632038,-500.0,0.00016579,2]
[398397825,1765602632048,-500.0,0.00016579,2]
[398397826,1765602632057,-150.0,0.00016579,2]
[398397827,1765602632067,-150.0,0.00016579,2]
[398397828,1765602632076,-150.0,0.00016579,2]
[398397829,1765602632086,-500.0,0.00016579,2]
[398397830,1765602632096,-277.43,0.0001659,2]
[398397831,1765602632106,-1000.0,0.000166,2]
[398397832,1765602632116,-1000.0,0.000166,2]
[398397834,1765602632125,-3085.84968732,0.0001666,2]
[398397836,1765602632134,-354.0,0.00016694,2]
[398397838,1765602632143,-677.0,0.00016695,2]
[398397839,1765602632152,-213.15981732,0.00016699,2]
[398397840,1765602632162,-659.4,0.000167,2]
[398397841,1765602632171,-677.0,0.00016714,2]
[398397842,1765602632180,-300.0,0.00016715,2]
[398397843,1765602632190,-599.0,0.00016715,2]
[398397844,1765602632199,-467.0,0.00016715,2]
[398397845,1765602632209,-150.0,0.00016716,2]
[398397846,1765602632218,-150.0,0.00016716,2]
[398397847,1765602632227,-500.0,0.00016716,2]
[398397849,1765602632237,-150.0,0.00016716,2]
[398397851,1765602632246,-500.0,0.00016716,2]
[398397852,1765602632256,-200.0,0.00016716,2]
[398397853,1765602632265,-254.21306055,0.00016716,2]
[398397854,1765602632275,-500.0,0.00016716,2]
[398397855,1765602632285,-500.0,0.00016716,2]
[398397856,1765602632294,-500.0,0.00016716,2]
[398397857,1765602632304,-150.0,0.00016716,2]
[398397858,1765602632315,-200.0,0.00016716,2]
[398397859,1765602632324,-150.0,0.00016716,2]
[398397860,1765602632334,-500.0,0.00016716,2]
[398397861,1765602632343,-200.0,0.00016716,2]
[398397862,1765602632353,-273.3,0.00016725,2]
[398397863,1765602632363,-9999.99,0.00016725,2]
[398397864,1765602632372,-3674.36,0.00016725,2]
[398397865,1765602632382,-6464.92,0.00016725,2]
[398397866,1765602632391,-9999.99,0.00016725,2]
[398397867,1765602632401,-9872.38,0.00016725,2]
[398397868,1765602632415,-150.99,0.00016725,2]
[398397869,1765602632425,-1198.47,0.00016725,2]
[398397870,1765602632435,-235.88,0.00016748,2]
[398397871,1765602632445,-181.63,0.00016758,2]
[398397872,1765602632454,-164.38,0.0001679,2]
[398397873,1765602632464,-247.51019936,0.00016799,2]
[398397874,1765602632474,-11089.86272553,0.000168,2]
[398397875,1765602632484,-1010.0,0.000168,2]
[398397876,1765602632494,-32327.6253554,0.000168,2]
[398397877,1765602632518,-19369.68187418,0.000168,2]
[398397878,1765602632529,-3186.111045,0.000168,2]
[398397879,1765602632545,-1432.6153019,0.000168,2]
[398397889,1765602639018,-150.0,0.00016579,2]
[398397890,1765602639029,-175.37680811,0.00016798,2]
[398397891,1765602639039,-370.67879883,0.00016798,2]
[398397892,1765602639055,-129.32120117,0.00016798,2]
[398397893,1765602639065,-444.67879883,0.00016798,2]
[398397894,1765602639091,-27.23367674,0.00016798,2]
[398397895,1765602639101,-2052.21293518,0.000168,2]
[398397896,1765602639112,-281.55,0.000168,2]
[398397897,1765602639123,-1691.06524236,0.000168,2]
[398397898,1765602639135,-17200.89889173,0.000168,2]
[398397899,1765602639151,-1319.6449995,0.000168,2]
[398397900,1765602639163,-3375.5170958,0.000168,2]
[398397901,1765602639175,-1689.39983074,0.000168,2]
[398397902,1765602639187,-1419.72595635,0.000168,2]
[398397903,1765602639198,-3236.52663475,0.000168,2]
[398397905,1765602640007,-116097.4341885,0.000168,2]
[398397906,1765602640061,-303115.47084861,0.000168,2]
[398397907,1765602640071,-164.53,0.00016813,2]
[398397908,1765602640080,-677.0,0.00016834,2]
[398397909,1765602640089,-1077.79550336,0.00016843,2]
[398397910,1765602640099,-218.53996822,0.00016845,2]
[398397911,1765602640108,-200.0,0.00016853,2]
[398397912,1765602640118,-200.0,0.00016853,2]
[398397913,1765602640127,-500.0,0.00016853,2]
[398397914,1765602640137,-150.0,0.00016853,2]
[398397915,1765602640146,-200.0,0.00016853,2]
[398397916,1765602640156,-150.0,0.00016853,2]
[398397917,1765602640166,-500.0,0.00016853,2]
[398397918,1765602640176,-500.0,0.00016853,2]
[398397919,1765602640185,-150.0,0.00016853,2]
[398397920,1765602640194,-200.0,0.00016853,2]
[398397921,1765602640204,-500.0,0.00016853,2]
[398397922,1765602640214,-178.504,0.00016858,2]
[398397923,1765602640224,-2523.676,0.00016858,2]
[398397924,1765602640234,-151.0,0.00016885,2]
[398397925,1765602640244,-30333.22399596,0.00016889,2]
[398397926,1765602640254,-574.12855637,0.0001689,2]
[398397927,1765602640264,-200.0,0.0001689,2]
[398397928,1765602640274,-500.0,0.0001689,2]
[398397929,1765602640284,-151.0,0.0001689,2]
[398397930,1765602640293,-200.0,0.0001689,2]
[398397931,1765602640303,-151.0,0.00016897,2]
[398397932,1765602640313,-500.0,0.00016899,2]
[398397933,1765602640323,-500.0,0.00016899,2]
[398397934,1765602640333,-500.0,0.00016899,2]
[398397935,1765602640343,-500.0,0.00016899,2]
[398397936,1765602640353,-500.0,0.00016899,2]
[398397937,1765602640362,-500.0,0.00016899,2]
[398397938,1765602640372,-677.0,0.00016905,2]
[398397939,1765602640381,-11089.86272548,0.00016922,2]
[398397940,1765602640391,-200.0,0.00016959,2]
[398397941,1765602640400,-500.8369678,0.00016973,2]
[398397942,1765602640410,-500.0,0.00016973,2]
[398397943,1765602640421,-501.17585924,0.00016973,2]
[398397944,1765602640431,-591.9541487,0.00016973,2]
[398397945,1765602640445,-500.0,0.00016973,2]
[398397947,1765602640455,-500.0,0.00016973,2]
[398397950,1765602640465,-155.18423664,0.00016973,2]
[398397952,1765602640476,-500.0,0.00016973,2]
[398397954,1765602640485,-500.0,0.00016973,2]
[398397956,1765602640494,-500.0,0.00016973,2]
[398397957,1765602640503,-500.0,0.00016973,2]
[398397960,1765602640512,-500.35142295,0.00016973,2]
[398397961,1765602640523,-500.0,0.00016973,2]
[398397964,1765602640533,-500.0,0.00016973,2]
[398397965,1765602640543,-500.0,0.00016973,2]
[398397968,1765602640552,-500.0,0.00016973,2]
[398397970,1765602640562,-500.0,0.00016973,2]
[398397972,1765602640572,-500.0,0.00016973,2]
[398397974,1765602640581,-500.0,0.00016973,2]
[398397976,1765602640591,-500.0,0.00016973,2]
[398397978,1765602640601,-302.79243627,0.00016973,2]
[398397980,1765602640610,-500.0,0.00016973,2]
[398397982,1765602640620,-500.0,0.00016973,2]
[398397984,1765602640629,-500.0,0.00016973,2]
[398397986,1765602640639,-500.0,0.00016973,2]
[398397988,1765602640648,-500.0,0.00016973,2]
[398397990,1765602640658,-1026.57,0.00016986,2]
[398397992,1765602640667,-150.0,0.00016986,2]
[398397994,1765602640677,-256.84023442,0.00016989,2]
[398397996,1765602640687,-500.0,0.0001699,2]
[398397998,1765602640696,-250.0,0.0001699,2]
[398398000,1765602640705,-500.0,0.0001699,2]
[398398002,1765602640714,-500.0,0.0001699,2]
[398398004,1765602640724,-150.0,0.0001699,2]
[398398006,1765602640733,-500.0,0.0001699,2]
[398398008,1765602640745,-151.0,0.00016996,2]
[398398009,1765602640755,-3243.657512,0.00016997,2]
[398398010,1765602640764,-461.75151474,0.00016998,2]
[398398011,1765602640773,-500.0,0.00016998,2]
[398398012,1765602640783,-500.0,0.00016998,2]
[398398013,1765602640802,-4515.0,0.00016999,2]
[398398014,1765602640813,-14009.2357716,0.00016999,2]
[398398015,1765602640822,-26230.78856521,0.00016999,2]
[398398016,1765602640834,-396165.9099782,0.00016999,2]
[398398017,1765602640854,-1428.652463,0.00016999,2]
[398398018,1765602640866,-1756.0,0.00016999,2]
[398398019,1765602640907,-360853.76705709,0.00016999,2]
[398398020,1765602640917,-42684.3431328,0.00016999,2]
[398398021,1765602640927,-9056.8578087,0.00016999,2]
[398398022,1765602640937,-1588.3068653,0.00016999,2]
[398398023,1765602640947,-50369.7737006,0.00016999,2]
[398398024,1765602640957,-8280.1750929,0.00016999,2]
[398398025,1765602640967,-2690.465126,0.00016999,2]
[398398026,1765602640978,-1000.0,0.00016999,2]
[398398027,1765602640989,-151.0,0.00016999,2]
[398398028,1765602640999,-216880.99451705,0.00017,2]
[398398029,1765602641008,-154.78563184,0.00017,2]
[398398030,1765602641018,-3762.78353,0.00017,2]
[398398031,1765602641027,-1504.38251197,0.00017,2]
[398398032,1765602641036,-200.0,0.00017,2]
[398398033,1765602641045,-151.0,0.00017,2]
[398398034,1765602641055,-153.158262,0.00017,2]
[398398035,1765602641064,-200.0,0.00017,2]
[398398036,1765602641073,-151.0,0.00017,2]
[398398037,1765602641082,-201.2673,0.00017,2]
[398398038,1765602641092,-201.2673,0.00017,2]
[398398039,1765602641101,-201.2673,0.00017,2]
[398398040,1765602641110,-201.2673,0.00017,2]
[398398041,1765602641119,-200.0,0.00017,2]
[398398042,1765602641129,-151.0,0.00017,2]
[398398043,1765602641138,-151.0,0.00017,2]
[398398044,1765602641148,-151.0,0.00017,2]
[398398045,1765602641157,-1000.0,0.00017,2]
[398398046,1765602641167,-645.20555254,0.00017,2]
[398398047,1765602641176,-151.75638234,0.00017,2]
[398398048,1765602641186,-151.0,0.00017,2]
[398398049,1765602641195,-156.81729,0.00017,2]
[398398050,1765602641205,-11089.86272548,0.00017044,2]
[398398051,1765602641214,-500.0,0.00017055,2]
[398398052,1765602641224,-168.0,0.00017075,2]
[398398053,1765602641233,-677.0,0.00017079,2]
[398398054,1765602641242,-1000.0,0.000171,2]
[398398055,1765602641251,-500.0,0.00017127,2]
[398398056,1765602641261,-500.0,0.00017127,2]
[398398057,1765602641270,-500.0,0.00017127,2]
[398398058,1765602641280,-250.0,0.00017127,2]
[398398059,1765602641289,-500.0,0.00017127,2]
[398398060,1765602641299,-677.0,0.00017135,2]
[398398061,1765602641309,-213.81030036,0.00017137,2]
[398398062,1765602641319,-677.0,0.00017147,2]
[398398063,1765602641328,-11089.86272548,0.00017167,2]
[398398064,1765602641338,-200.0,0.0001717,2]
[398398065,1765602641349,-200.0,0.0001717,2]
[398398066,1765602641359,-200.0,0.0001717,2]
[398398067,1765602641368,-1000.0,0.000172,2]
[398398068,1765602641377,-2072.33871244,0.00017224,2]
[398398069,1765602641387,-1306.0,0.00017228,2]
[398398070,1765602641396,-2431.252,0.00017228,2]
[398398071,1765602641405,-4796.0,0.00017228,2]
[398398072,1765602641415,-410.0,0.00017242,2]
[398398073,1765602641424,-1026.57,0.0001726,2]
[398398074,1765602641434,-178.16,0.0001726,2]
[398398075,1765602641445,-178.16,0.0001726,2]
[398398076,1765602641455,-500.0,0.00017264,2]
[398398077,1765602641464,-500.0,0.00017264,2]
[398398078,1765602641474,-500.0,0.00017264,2]
[398398079,1765602641484,-500.0,0.00017264,2]
[398398080,1765602641494,-11089.86272548,0.00017289,2]
[398398081,1765602641503,-793.00019504,0.00017291,2]
[398398082,1765602641512,-500.0,0.00017304,2]
[398398083,1765602641522,-200.0,0.00017324,2]
[398398084,1765602641532,-150.183,0.00017324,2]
[398398085,1765602641541,-150.0,0.00017324,2]
[398398086,1765602641550,-3450.0,0.00017324,2]
[398398087,1765602641560,-611.0,0.00017324,2]
[398398088,1765602641570,-1606.0,0.00017324,2]
[398398089,1765602641580,-1328.104,0.00017324,2]
[398398090,1765602641589,-642.0,0.00017324,2]
[398398091,1765602641599,-1262.646,0.00017324,2]
[398398092,1765602641608,-260.991985,0.00017324,2]
[398398093,1765602641618,-201.2673,0.00017324,2]
[398398094,1765602641627,-201.2673,0.00017324,2]
[398398095,1765602641638,-201.2673,0.00017324,2]
[398398096,1765602641647,-201.2673,0.00017324,2]
[398398097,1765602641656,-151.0,0.00017324,2]
[398398098,1765602641665,-200.0,0.00017342,2]
[398398099,1765602641675,-164.53,0.0001735,2]
[398398100,1765602641685,-2072.33871241,0.00017359,2]
[398398101,1765602641694,-410.0,0.0001736,2]
[398398102,1765602641704,-300.0,0.00017383,2]
[398398103,1765602641714,-300.0,0.00017383,2]
[398398104,1765602641723,-500.0,0.00017401,2]
[398398105,1765602641733,-500.0,0.00017401,2]
[398398106,1765602641747,-500.0,0.00017401,2]
[398398107,1765602641756,-500.0,0.00017401,2]
[398398108,1765602641766,-11089.86272548,0.00017411,2]
[398398109,1765602641775,-153.81187726,0.00017422,2]
[398398110,1765602641786,-151.0,0.00017437,2]
[398398111,1765602641795,-151.0,0.00017437,2]
[398398112,1765602641804,-151.0,0.00017437,2]
[398398113,1765602641816,-595.37131296,0.00017438,2]
[398398114,1765602641825,-301.14144576,0.00017438,2]
[398398115,1765602641835,-2072.33871241,0.00017494,2]
[398398116,1765602641844,-498.60294116,0.00017521,2]
[398398117,1765602641854,-500.0,0.00017521,2]
[398398118,1765602641864,-1000.0,0.00017521,2]
[398398119,1765602641876,-1000.0,0.00017521,2]
[398398120,1765602641886,-366.66868251,0.00017521,2]
[398398121,1765602641896,-1000.0,0.00017521,2]
[398398122,1765602641905,-500.0,0.00017521,2]
[398398123,1765602641915,-1000.0,0.00017521,2]
[398398124,1765602641925,-500.82958274,0.00017521,2]
[398398125,1765602641934,-1000.0,0.00017521,2]
[398398126,1765602641944,-500.98827769,0.00017521,2]
[398398127,1765602641953,-1000.0,0.00017521,2]
[398398128,1765602641963,-1000.0,0.00017521,2]
[398398129,1765602641973,-1000.0,0.00017521,2]
[398398130,1765602641982,-1000.0,0.00017521,2]
[398398131,1765602641994,-1000.0,0.00017521,2]
[398398132,1765602642008,-1000.0,0.00017521,2]
[398398133,1765602642017,-544.96479342,0.00017521,2]
[398398134,1765602642027,-11089.86272548,0.00017533,2]
[398398135,1765602642037,-1026.57,0.00017534,2]
[398398136,1765602642047,-516.0,0.00017538,2]
[398398137,1765602642057,-500.0,0.00017538,2]
[398398138,1765602642067,-500.0,0.00017538,2]
[398398139,1765602642076,-500.0,0.00017538,2]
[398398140,1765602642087,-2609.81038622,0.00017542,2]
[398398141,1765602642096,-195.0,0.00017542,2]
[398398142,1765602642106,-250.0,0.00017542,2]
[398398143,1765602642115,-300.0,0.00017542,2]
[398398144,1765602642125,-191.51010774,0.00017542,2]
[398398145,1765602642135,-250.0,0.00017542,2]
[398398146,1765602642145,-300.0,0.00017542,2]
[398398147,1765602642155,-1052.39569117,0.00017551,2]
[398398148,1765602642164,-153.095142,0.00017577,2]
[398398149,1765602642174,-2072.33871241,0.0001763,2]
[398398150,1765602642183,-410.0,0.00017651,2]
[398398151,1765602642193,-11089.86272548,0.00017656,2]
[398398152,1765602642202,-410.0,0.00017662,2]
[398398153,1765602642213,-195.0,0.00017667,2]
[398398154,1765602642223,-500.0,0.00017675,2]
[398398155,1765602642233,-500.0,0.00017675,2]
[398398156,1765602642243,-500.0,0.00017675,2]
[398398157,1765602642253,-168.0,0.00017686,2]
[398398158,1765602642263,-410.0,0.00017694,2]
[398398159,1765602642272,-410.0,0.00017715,2]
[398398160,1765602642282,-212.0,0.00017755,2]
[398398161,1765602642292,-2072.33871241,0.00017765,2]
[398398162,1765602642302,-11089.86272548,0.00017778,2]
[398398163,1765602642311,-167.01,0.00017793,2]
[398398164,1765602642730,-500.0,0.00017808,2]
[398398165,1765602642743,-1026.57,0.00017808,2]
[398398166,1765602642752,-1000.0,0.00017811,2]
[398398167,1765602642761,-314.75994523,0.00017812,2]
[398398168,1765602642770,-500.0,0.00017812,2]
[398398169,1765602642779,-500.0,0.00017812,2]
[398398170,1765602642788,-201.2673,0.00017812,2]
[398398171,1765602642797,-201.2673,0.00017812,2]
[398398172,1765602642806,-201.2673,0.00017812,2]
[398398173,1765602642819,-201.2673,0.00017812,2]
[398398174,1765602642828,-168.42,0.00017813,2]
[398398175,1765602642837,-410.0,0.00017842,2]
[398398176,1765602642846,-168.0,0.00017873,2]
[398398177,1765602642855,-164.53,0.00017888,2]
[398398178,1765602642864,-500.0,0.00017899,2]
[398398179,1765602642874,-1901.54121577,0.000179,2]
[398398180,1765602642883,-11089.86272548,0.000179,2]
[398398181,1765602642892,-1219.76333752,0.000179,2]
[398398182,1765602642901,-2072.33871241,0.000179,2]
[398398183,1765602642910,-991.72993006,0.000179,2]
[398398184,1765602642919,-500.0,0.00017945,2]
[398398185,1765602642929,-500.0,0.00017949,2]
[398398186,1765602642938,-500.0,0.00017949,2]
[398398187,1765602642947,-212.0,0.00017963,2]
[398398188,1765602642956,-420.0,0.00017964,2]
[398398189,1765602642965,-500.0,0.00017973,2]
[398398190,1765602642974,-500.0,0.00017973,2]
[398398191,1765602642983,-500.0,0.00017973,2]
[398398192,1765602642992,-218.80733151,0.00017973,2]
[398398193,1765602643002,-500.0,0.00017973,2]
[398398194,1765602643014,-500.0,0.00017973,2]
[398398195,1765602643024,-500.0,0.00017973,2]
[398398196,1765602643033,-500.0,0.00017973,2]
[398398197,1765602643049,-500.0,0.00017973,2]
[398398198,1765602643059,-500.0,0.00017973,2]
[398398199,1765602643069,-500.0,0.00017973,2]
[398398200,1765602643078,-500.0,0.00017973,2]
[398398201,1765602643087,-500.0,0.00017973,2]
[398398202,1765602643096,-500.0,0.00017973,2]
[398398203,1765602643106,-508.85245176,0.00017973,2]
[398398204,1765602643115,-500.0,0.00017973,2]
[398398205,1765602643125,-500.0,0.00017973,2]
[398398206,1765602643134,-500.0,0.00017973,2]
[398398207,1765602643143,-500.0,0.00017973,2]
[398398208,1765602643153,-500.0,0.00017973,2]
[398398209,1765602643162,-500.0,0.00017973,2]
[398398210,1765602643172,-500.0,0.00017973,2]
[398398211,1765602643181,-500.0,0.00017973,2]
[398398212,1765602643191,-500.0,0.00017973,2]
[398398213,1765602643200,-500.0,0.00017973,2]
[398398214,1765602643209,-500.0,0.00017973,2]
[398398215,1765602643218,-500.0,0.00017973,2]
[398398216,1765602643231,-522.4184963,0.00017973,2]
[398398217,1765602643240,-500.0,0.00017973,2]
[398398218,1765602643249,-500.0,0.00017973,2]
[398398219,1765602643259,-500.0,0.00017973,2]
[398398220,1765602643269,-500.0,0.00017973,2]
[398398221,1765602643278,-498.06019866,0.00017973,2]
[398398222,1765602643287,-500.0,0.00017973,2]
[398398223,1765602643297,-500.0,0.00017973,2]
[398398224,1765602643306,-500.0,0.00017973,2]
[398398225,1765602643315,-500.0,0.00017973,2]
[398398226,1765602643324,-500.0,0.00017973,2]
[398398227,1765602643333,-500.0,0.00017973,2]
[398398228,1765602643342,-500.0,0.00017973,2]
[398398229,1765602643351,-500.0,0.00017973,2]
[398398230,1765602643360,-500.0,0.00017973,2]
[398398231,1765602643369,-500.0,0.00017973,2]
[398398232,1765602643378,-500.0,0.00017973,2]
[398398233,1765602643388,-500.0,0.00017973,2]
[398398234,1765602643397,-500.0,0.00017973,2]
[398398235,1765602643407,-500.0,0.00017973,2]
[398398236,1765602643418,-500.0,0.00017973,2]
[398398237,1765602643427,-1308.82,0.00017973,2]
[398398238,1765602643437,-763.13441996,0.00017986,2]
[398398239,1765602643446,-410.0,0.00017989,2]
[398398240,1765602643456,-256.84023442,0.0001799,2]
[398398241,1765602643465,-256.84023442,0.0001799,2]
[398398242,1765602643475,-410.0,0.00017999,2]
[398398243,1765602643484,-510.38572399,0.00017999,2]
[398398244,1765602643494,-272.84521117,0.00017999,2]
[398398245,1765602643503,-517.55142214,0.00017999,2]
[398398246,1765602643512,-511.37210944,0.00017999,2]
[398398247,1765602643521,-500.0,0.00017999,2]
[398398248,1765602643530,-500.0,0.00017999,2]
[398398249,1765602643539,-500.0,0.00017999,2]
[398398250,1765602643548,-500.0,0.00017999,2]
[398398251,1765602643557,-500.0,0.00017999,2]
[398398252,1765602643566,-500.0,0.00017999,2]
[398398253,1765602643576,-500.0,0.00017999,2]
[398398254,1765602643585,-307.92768827,0.00017999,2]
[398398255,1765602643594,-300.0,0.00018,4]
[398398256,1765602643603,-1463697.82649746,0.00018,2]
[398398257,1765602643618,-6450.40605885,0.00018,2]
[398398258,1765602643913,-608.052521,0.00017302,2]
[398398259,1765602643942,-301.947479,0.00017302,2]
[398398260,1765602643951,-21190.59464868,0.00018,2]
[398398261,1765602643967,-306.23900044,0.00018,2]
[398398262,1765602645915,-327.46040994,0.00016899,2]
[398398263,1765602645924,-2116.98411817,0.00018,2]
[398398264,1765602645970,-318.00863237,0.00018,2]
[398398265,1765602646027,-300.81129169,0.00018,2]
[398398277,1765602994385,5000.0,0.00025,120]
[398398279,1765603009128,5052.07,0.00025,120]
[398398292,1765603218437,-166.66,0.00015794,2]
[398398293,1765603218459,-119.841292,0.00015794,2]
[398398294,1765603475636,-184.55948542,0.00015409,2]
[398398295,1765603476856,-386.69466827,0.00015409,2]
[398398296,1765603479754,-209.68035695,0.00015409,2]
[398398297,1765603485132,-317.06548936,0.00015409,2]
[398398298,1765603485154,-5.03736867,0.00015409,2]
[398398299,1765603487831,-166.40561488,0.00015409,2]
[398398300,1765603493898,-511.49152709,0.00015409,2]
[398398301,1765603498068,-279.0,0.00015409,2]
[398398302,1765603502929,-136.06548936,0.00015409,2]
[398398303,1765603502951,-58.93451064,0.00015409,2]
[398398304,1765603504471,-153.34794041,0.00015409,2]
[398398305,1765603507680,782.13420715,0.00015309,2]
[398398306,1765603509348,-300.0,0.00015409,2]
[398398307,1765603510820,-174.66898404,0.00015409,2]
[398398308,1765603513019,-166.66000017,0.00015409,2]
[398398309,1765603517303,-244.38856474,0.00015409,2]
[398398310,1765603517327,-55.61143526,0.00015409,2]
[398398311,1765603520290,-276.74563265,0.00015409,2]
[398398312,1765603525680,-300.0,0.00015409,2]
[398398313,1765603528376,-226.75071876,0.00015409,2]
[398398314,1765603533905,-195.0,0.00015409,2]
[398398330,1765603818383,-43.89221333,0.00015409,2]
[398398331,1765603818406,-163.96000091,0.00015409,2]
[398398335,1765603832063,-114.03999909,0.00015409,2]
[398398337,1765603832072,-885.96000091,0.00015598,3]
[398398339,1765603832084,-113.03999909,0.00015598,3]
[398398341,1765603832093,-250.0,0.00015602,2]
[398398343,1765603832103,-2033.08,0.00015696,2]